bitfinex-derivatives/quotes_SOLF0:USTF0_20251126
["timestamp","ask_amount","ask_price","bid_price","bid_amount"]
[1764122068127,3.06,140.06,139.99,28.08083405]
[1764122068626,3.06,140.06,140.01,6.4309]
[1764122068826,3.10788195,140.05,140.02,0.04600972]
[1764122069726,0.04788195,140.05,140.02,0.04600972]
[1764122070219,0.04788195,140.05,140.02,3.58684377]
[1764122070624,0.04788195,140.05,140.02,0.04600972]
[1764122070825,3.10788195,140.05,140.02,0.04600972]
[1764122081039,3.10788195,140.05,139.97,2.26148862]
[1764122081235,3.06,140.05,139.97,2.26148862]
[1764122082136,3.06,140.01,140.0,0.05261288]
[1764122083226,3.06,140.01,139.95,6.4336]
[1764122084236,3.06,140.01,139.97,0.04900316]
[1764122090645,3.11719866,140.02,139.97,0.04900316]
[1764122090950,3.11719866,140.02,139.98,2.26148862]
[1764122092550,3.11719866,140.02,139.98,8.69378862]
[1764122092746,3.11719866,140.02,139.97,0.04900316]
[1764122092950,3.11719866,140.02,139.97,2.31049178]
[1764122094246,3.11719866,140.02,139.97,0.04900316]
[1764122096054,9.54789866,140.02,139.97,0.04900316]
[1764122096249,3.07,140.01,139.97,0.04900316]
[1764122098150,3.07,140.01,139.97,6.48180316]
[1764122099256,3.07,140.01,139.97,0.04900316]
[1764122101457,3.07,140.01,139.98,6.4323]
[1764122102161,3.07,140.01,139.97,0.04900316]
[1764122102561,3.07,140.01,139.92,8.87899586]
[1764122102562,3.1,139.99,139.93,6.4347]
[1764122103560,3.1,139.96,139.93,6.4347]
[1764122105758,3.1,139.96,139.91,17.57588448]
[1764122105959,3.1,139.96,139.91,8.69688862]
[1764122107247,3.1,139.96,139.92,6.4351]
[1764122109359,3.1,139.96,139.9,108.99429586]
[1764122109360,3.1,139.96,139.9,15.31489586]
[1764122109558,3.1,139.95,139.9,6.4359]
[1764122109754,3.1,139.93,139.87,11.14048448]
[1764122109954,3.1,139.91,139.85,8.87899586]
[1764122110157,3.1,139.91,139.83,113.6250101]
[1764122110158,3.1,139.88,139.84,8.87899586]
[1764122110353,3.1,139.88,139.83,11.14048448]
[1764122110566,3.1,139.88,139.83,2.26148862]
[1764122112361,3.1,139.88,139.84,6.4387]
[1764122112667,3.1,139.88,139.83,102.42578862]
[1764122113260,3.1,139.88,139.85,6.4382]
[1764122115475,3.1,139.87,139.79,6.4408]
[1764122115665,8.69878862,139.88,139.79,6.4408]
[1764122115666,3.1,139.83,139.79,6.4408]
[1764122115867,3.14712554,139.84,139.8,2.26148862]
[1764122116269,0.04712554,139.84,139.8,2.26148862]
[1764122116563,0.04712554,139.84,139.81,6.44]
[1764122116770,0.04712554,139.84,139.81,8.70148862]
[1764122118172,0.04712554,139.84,139.82,6.4395]
[1764122120271,2.90712554,139.84,139.73,8.87899586]
[1764122120570,2.90899854,139.8,139.72,162.2444]
[1764122120768,2.90899854,139.8,139.76,2.26148862]
[1764122121673,2.90899854,139.8,139.76,8.70378862]
[1764122122069,2.90899854,139.8,139.74,8.70478862]
[1764122122278,2.90899854,139.8,139.72,100.2466]
[1764122122567,2.90899854,139.8,139.73,102.49858862]
[1764122123169,2.90899854,139.8,139.75,6.4428]
[1764122126576,2.90899854,139.8,139.73,8.70518862]
[1764122128389,2.26148862,139.79,139.71,24.56]
[1764122128575,2.91057223,139.76,139.71,24.56]
[1764122129477,2.91057223,139.76,139.71,26.82148862]
[1764122129976,2.91057223,139.76,139.72,6.4442]
[1764122130187,2.91057223,139.76,139.71,26.82148862]
[1764122130374,0.05057223,139.76,139.71,127.07248862]
[1764122130774,0.05057223,139.76,139.74,6.4433]
[1764122131370,2.91057223,139.76,139.74,6.4433]
[1764122131574,2.91057223,139.76,139.72,8.70568862]
[1764122131879,2.91057223,139.76,139.72,6.4442]
[1764122133382,0.05057223,139.76,139.72,6.4442]
[1764122133784,0.05057223,139.76,139.73,6.4437]
[1764122133984,2.91057223,139.76,139.65,100.2971]
[1764122134285,2.86,139.74,139.68,2.26148862]
[1764122134585,2.86,139.74,139.65,100.2971]
[1764122134586,2.86,139.71,139.66,2.26148862]
[1764122135292,2.86,139.71,139.67,6.4466]
[1764122135587,2.86,139.71,139.66,102.54908862]
[1764122136489,2.86,139.71,139.68,6.4461]
[1764122137781,2.86,139.71,139.66,8.70838862]
[1764122139776,2.86,139.71,139.67,6.4466]
[1764122140779,2.86,139.71,139.68,6.4461]
[1764122142887,2.86,139.71,139.66,9.9975048]
[1764122143388,0.05404573,139.72,139.66,3.5506048]
[1764122144287,0.05404573,139.72,139.68,6.4461]
[1764122144788,0.05404573,139.72,139.69,3.5506048]
[1764122145884,2.86,139.8,139.71,100.2541]
[1764122146187,2.86,139.83,139.76,100.2174]
[1764122146391,2.86,139.83,139.76,6.4423]
[1764122146589,2.86,139.83,139.75,103.7717048]
[1764122146992,0.04621374,139.8,139.78,0.0475373]
[1764122148386,0.04621374,139.8,139.78,6.4890373]
[1764122154002,2.95,139.86,139.81,6.4401]
[1764122154900,0.05246074,139.85,139.82,0.04825223]
[1764122155203,3.00246074,139.85,139.82,0.04825223]
[1764122161601,2.86,139.83,139.76,31.0225]
[1764122162305,2.86,139.82,139.77,6.442]
[1764122162702,2.91482526,139.81,139.78,0.05260427]
[1764122165997,0.05482526,139.81,139.78,0.05260427]
[1764122166197,0.05482526,139.81,139.78,103.80380907]
[1764122167406,0.05482526,139.81,139.79,6.441]
[1764122170907,2.86,139.87,139.84,6.4387]
[1764122171105,2.86,139.87,139.82,100.174]
[1764122171312,3.5506048,139.93,139.83,2.39]
[1764122172111,0.04972013,139.89,139.87,0.04890554]
[1764122172895,0.04972013,139.89,139.87,6.48630554]
[1764122173408,2.86,139.88,139.87,6.48630554]
[1764122174308,0.04972013,139.89,139.87,6.48630554]
[1764122174500,0.04972013,139.89,139.88,2.39]
[1764122176510,2.86,139.92,139.88,2.39]
[1764122176706,2.86,139.94,139.91,8.8257]
[1764122176909,2.86,139.94,139.91,2.39]
[1764122177109,2.86,139.94,139.92,6.435]
[1764122177308,6.4323,139.99,139.92,6.435]
[1764122177309,2.85,139.99,139.92,2.38]
[1764122177809,2.85,139.96,139.94,0.04781497]
[1764122179617,2.85,139.96,139.94,6.48191497]
[1764122184416,2.89826356,139.97,139.95,6.4335]
[1764122185919,0.04826356,139.97,139.95,8.8135]
[1764122186114,2.89826356,139.97,139.95,6.4335]
[1764122186721,0.04826356,139.97,139.96,2.38]
[1764122187023,0.04826356,139.97,139.95,8.8135]
[1764122187922,0.04826356,139.97,139.96,2.38]
[1764122188519,2.89826356,139.97,139.95,6.4335]
[1764122190621,0.04826356,139.97,139.95,8.8135]
[1764122193822,0.04826356,139.97,139.94,0.04781497]
[1764122193823,2.89826356,139.97,139.94,0.04781497]
[1764122196725,2.89826356,139.97,139.94,6.48191497]
[1764122196914,0.04826356,139.97,139.94,2.42781497]
[1764122197622,2.89826356,139.97,139.95,6.4337]
[1764122197828,2.89826356,139.97,139.95,8.8137]
[1764122198216,2.89826356,139.97,139.95,6.4337]
[1764122204928,2.89826356,139.97,139.94,0.04781497]
[1764122214224,2.89826356,139.97,139.91,6.4353]
[1764122214429,2.85,139.97,139.91,6.4353]
[1764122215241,0.05120566,139.95,139.93,0.0526749]
[1764122215436,3.0,139.94,139.93,0.0526749]
[1764122216438,3.0,139.93,139.86,102.575]
[1764122217338,3.0,139.9,139.88,6.48198054]
[1764122220839,3.0,139.9,139.88,0.04518054]
[1764122221839,0.04591077,139.91,139.88,2.48518054]
[1764122222048,3.07591077,139.91,139.88,8.92208054]
[1764122223537,3.07591077,139.91,139.88,6.48208054]
[1764122224541,0.04591077,139.91,139.89,8.8764]
[1764122224746,0.04591077,139.91,139.9,2.44]
[1764122227846,3.03,139.99,139.93,2.44]
[1764122228147,3.03,139.99,139.94,2.44]
[1764122228742,0.04619015,139.98,139.95,6.48488352]
[1764122228947,3.03,139.97,139.95,6.48488352]
[1764122232752,3.03,139.97,139.95,0.05118352]
[1764122234246,0.04619015,139.98,139.96,2.44]
[1764122234447,0.04619015,139.98,139.97,2.44]
[1764122235852,0.04619015,139.98,139.96,2.44]
[1764122236053,0.04619015,139.98,139.96,8.8732]
[1764122236453,0.04619015,139.98,139.97,2.44]
[1764122239645,3.07619015,139.98,139.95,2.46118352]
[1764122239851,3.07619015,139.98,139.95,0.05118352]
[1764122240357,3.07619015,139.98,139.95,2.46118352]
[1764122241449,3.07619015,139.98,139.95,0.05118352]
[1764122241652,9.50879015,139.98,139.95,0.05118352]
[1764122241852,3.03,139.97,139.9,2.26449961]
[1764122242160,3.03,139.96,139.89,2.41]
[1764122242556,3.03,139.92,139.89,2.41]
[1764122242761,3.03,139.92,139.86,4.72449961]
[1764122243057,0.04935871,139.9,139.88,2.50689435]
[1764122244750,3.03,139.89,139.88,0.04689435]
[1764122245147,0.04935871,139.9,139.88,2.50689435]
[1764122245661,0.04935871,139.9,139.89,4.72449961]
[1764122248258,3.07935871,139.9,139.88,0.04689435]
[1764122248451,3.03,139.88,139.84,8.87899586]
[1764122248653,3.03,139.87,139.81,2.51]
[1764122249555,0.04600616,139.85,139.83,0.02200108]
[1764122250754,3.07600616,139.85,139.83,0.02200108]
[1764122252256,3.03,139.84,139.76,4.77449961]
[1764122252562,3.03,139.84,139.77,2.51]
[1764122253462,0.04734708,139.82,139.77,2.51]
[1764122253770,0.04734708,139.82,139.79,2.51]
[1764122255268,0.04734708,139.82,139.81,2.51]
[1764122255458,3.03,139.87,139.81,2.51]
[1764122256362,0.04715819,139.85,139.84,2.46]
[1764122257972,2.26449961,139.91,139.85,2.42]
[1764122258168,3.03,139.92,139.85,2.42]
[1764122258872,0.0506632,139.9,139.87,0.05439433]
[1764122259079,3.0806632,139.9,139.87,0.05439433]
[1764122260277,3.0806632,139.9,139.87,2.47439433]
[1764122260677,0.0506632,139.9,139.87,2.47439433]
[1764122261777,3.0806632,139.9,139.87,2.47439433]
[1764122265983,0.0506632,139.9,139.87,2.47439433]
[1764122270982,0.0506632,139.9,139.87,8.91159433]
[1764122271285,0.0506632,139.9,139.88,2.43]
[1764122275582,3.1606632,139.9,139.88,2.43]
[1764122276190,0.0506632,139.9,139.88,2.43]
[1764122279897,0.0506632,139.9,139.89,2.43]
[1764122281995,3.01,139.98,139.91,2.43]
[1764122282209,3.01,139.97,139.91,2.43]
[1764122282490,3.01,139.97,139.85,3.5424224]
[1764122282491,3.01,139.94,139.88,2.43]
[1764122282996,3.06044759,139.92,139.9,0.05110593]
[1764122284994,3.01,139.91,139.9,0.05110593]
[1764122286400,9.49594759,139.92,139.9,0.05110593]
[1764122287706,0.05044759,139.92,139.9,2.48110593]
[1764122287998,3.01,139.98,139.91,2.43]
[1764122288207,3.01,139.98,139.94,2.43]
[1764122288786,0.05283222,139.97,139.95,0.04611831]
[1764122288995,0.05283222,139.97,139.95,2.47611831]
[1764122289705,3.06283222,139.97,139.95,0.04611831]
[1764122292599,9.49593222,139.97,139.95,0.04611831]
[1764122293206,3.01,139.96,139.95,0.04611831]
[1764122295605,3.01,139.94,139.9,2.43]
[1764122296704,0.0491052,139.93,139.91,2.48016575]
[1764122298010,2.97,139.99,139.92,2.43]
[1764122298205,2.97,139.99,139.94,2.43]
[1764122299015,0.05238176,139.98,139.96,2.43]
[1764122299803,0.05238176,139.98,139.96,8.8632]
[1764122307118,0.05238176,139.98,139.97,2.43]
[1764122312128,9.4005,140.03,139.99,2.43]
[1764122312519,2.97,140.03,139.99,2.43]
[1764122312823,9.3995,140.05,139.99,2.43]
[1764122313127,0.0504778,140.03,140.01,2.48040788]
[1764122320433,3.0204778,140.03,140.01,0.05040788]
[1764122321236,3.0204778,140.03,140.01,2.48040788]
[1764122333150,0.0504778,140.03,140.02,2.41]
[1764122334250,3.0404778,140.03,140.01,0.05040788]
[1764122335039,9.4707778,140.03,140.01,0.05040788]
[1764122335349,2.99,140.02,140.01,0.05040788]
[1764122336649,2.99,140.01,139.96,2.41]
[1764122337551,3.03934374,140.0,139.97,0.0486855]
[1764122337849,3.03934374,140.0,139.97,2.4586855]
[1764122340665,3.03934374,140.0,139.97,0.0486855]
[1764122340860,5.30195724,140.0,139.97,0.0486855]
[1764122341060,2.87,139.99,139.97,0.0486855]
[1764122341461,2.87,139.97,139.91,2.43]
[1764122342160,2.87,139.95,139.91,2.43]
[1764122342569,0.05150835,139.94,139.92,0.04569729]
[1764122342864,0.05150835,139.94,139.92,2.47569729]
[1764122343852,2.92150835,139.94,139.92,0.04569729]
[1764122346964,2.87,139.93,139.89,2.43]
[1764122348057,2.87,139.93,139.9,0.04562463]
[1764122351362,0.05150835,139.94,139.9,2.47562463]
[1764122351667,0.05150835,139.94,139.92,2.43]
[1764122352466,0.05150835,139.94,139.92,8.8651]
[1764122352665,0.05150835,139.94,139.93,2.43]
[1764122353361,0.05150835,139.94,139.9,8.74413813]
[1764122353570,2.92150835,139.94,139.9,0.04562463]
[1764122355462,2.92150835,139.94,139.9,2.47562463]
[1764122355761,0.05150835,139.94,139.9,2.47562463]
[1764122355967,0.05150835,139.94,139.9,4.73823813]
[1764122356164,0.05150835,139.94,139.91,2.43]
[1764122357266,2.92150835,139.94,139.91,2.43]
[1764122358381,2.92150835,139.94,139.92,2.43]
[1764122359867,0.05150835,139.94,139.92,2.43]
[1764122365073,24.52,139.99,139.92,2.43]
[1764122365278,6.64837082,140.04,139.97,2.38]
[1764122365279,2.94,140.02,139.97,2.38]
[1764122366076,0.04938687,140.01,139.98,0.04778635]
[1764122366374,2.94,140.0,139.98,0.04778635]
[1764122377691,9.3717,140.0,139.98,0.04778635]
[1764122377987,2.94,139.99,139.98,0.04778635]
[1764122387289,2.98938687,140.01,139.98,2.42778635]
[1764122387993,3.08938687,140.01,139.98,2.42778635]
[1764122388286,0.04938687,140.01,139.98,2.42778635]
[1764122389084,0.04938687,140.01,139.99,6.4319]
[1764122389382,0.04938687,140.01,140.0,2.38]
[1764122389980,3.08938687,140.01,139.98,0.04778635]
[1764122394892,3.08938687,140.01,139.98,6.48008635]
[1764122396495,3.08938687,140.01,139.98,8.86008635]
[1764122401593,3.08938687,140.01,139.98,2.42778635]
[1764122401799,3.08938687,140.01,139.98,0.04778635]
[1764122402301,3.04,140.0,139.98,0.04778635]
[1764122403601,0.04938687,140.01,139.98,2.42778635]
[1764122404398,0.04938687,140.01,140.0,2.38]
[1764122404601,3.53753665,140.09,140.0,2.38]
[1764122404602,3.04,140.07,140.0,2.38]
[1764122405194,3.04,140.07,140.0,6.4313]
[1764122405595,3.04,140.04,140.02,0.05370087]
[1764122406202,0.04987531,140.05,140.02,2.43370087]
[1764122407403,0.04987531,140.05,140.02,8.86420087]
[1764122407800,0.04987531,140.05,140.03,2.38]
[1764122408103,0.04987531,140.05,140.03,8.81]
[1764122408311,0.04987531,140.05,140.04,2.38]
[1764122410416,3.08987531,140.05,140.02,2.43370087]
[1764122410707,3.08987531,140.05,140.02,0.05370087]
[1764122412412,9.51927531,140.05,140.02,0.05370087]
[1764122412607,3.04,140.04,140.02,0.05370087]
[1764122414006,3.04,140.03,139.96,2.38]
[1764122414313,3.04,140.02,139.94,2.43]
[1764122414706,3.04,139.99,139.94,8.8642]
[1764122415015,3.09216751,139.98,139.95,2.48416045]
[1764122416502,3.09216751,139.98,139.95,0.05416045]
[1764122416705,3.09216751,139.98,139.95,2.48416045]
[1764122417609,0.05216751,139.98,139.95,2.48416045]
[1764122419411,0.05216751,139.98,139.97,2.43]
[1764122419609,0.05216751,139.98,139.96,2.43]
[1764122419812,3.14216751,139.98,139.96,2.43]
[1764122421610,0.05216751,139.98,139.96,2.43]
[1764122423415,0.05216751,139.98,139.96,8.8631]
[1764122424912,0.05216751,139.98,139.97,2.43]
[1764122426910,0.05216751,139.98,139.95,2.48416045]
[1764122426911,3.14216751,139.98,139.95,2.48416045]
[1764122428918,3.14216751,139.98,139.95,0.05416045]
[1764122429520,3.14216751,139.98,139.95,2.48416045]
[1764122429818,0.05216751,139.98,139.95,2.48416045]
[1764122430218,0.05216751,139.98,139.97,2.43]
[1764122435824,3.14216751,139.98,139.95,2.48416045]
[1764122436119,0.05216751,139.98,139.95,2.48416045]
[1764122438424,0.05216751,139.98,139.97,2.43]
[1764122439320,3.09,140.03,139.97,2.43]
[1764122439524,9.5191,140.06,139.99,2.43]
[1764122439915,3.09,140.05,140.02,2.43]
[1764122440423,0.04903244,140.05,140.02,2.48046588]
[1764122440723,0.04903244,140.05,140.04,2.43]
[1764122444730,0.04903244,140.05,140.03,8.86]
[1764122444928,0.04903244,140.05,140.04,2.43]
[1764122445334,0.04903244,140.05,140.03,2.43]
[1764122445723,3.13903244,140.05,140.02,0.05046588]
[1764122446920,3.13903244,140.05,140.02,2.48046588]
[1764122450426,3.13903244,140.05,140.02,0.05046588]
[1764122451327,2.85,140.03,140.02,0.05046588]
[1764122452727,2.85,140.01,139.96,4.69182632]
[1764122453235,2.85,140.01,139.97,2.48]
[1764122453830,0.04922222,140.0,139.98,0.04785059]
[1764122454938,0.04922222,140.0,139.98,2.52785059]
[1764122455131,2.85,140.07,139.99,2.48]
[1764122455331,2.85,140.07,140.01,2.48]
[1764122456132,0.05475492,140.05,140.03,0.04986709]
[1764122458040,2.90475492,140.05,140.03,0.04986709]
[1764122465045,3.07,140.04,140.03,0.04986709]
[1764122469244,0.05475492,140.05,140.03,2.52986709]
[1764122470051,3.12475492,140.05,140.03,0.04986709]
[1764122473852,3.07,140.04,139.96,13.62082218]
[1764122474053,3.07,140.04,139.96,4.74182632]
[1764122474448,3.07,140.04,139.98,6.4324]
[1764122474449,6.4303,140.03,139.98,6.4324]
[1764122474653,3.07,140.07,140.03,2.53]
[1764122474856,0.05020568,140.06,140.05,2.53]
[1764122475154,3.07,140.09,140.05,8.9591]
[1764122475361,5.27023156,140.08,140.05,8.9591]
[1764122475562,3.07,140.09,140.05,8.9591]
[1764122475760,5.26985961,140.08,140.06,8.9586]
[1764122475960,0.04992166,140.08,140.06,9.00521158]
[1764122478859,0.04992166,140.08,140.07,2.53]
[1764122479060,5.31717396,140.08,140.06,6.47521158]
[1764122479260,0.04992166,140.08,140.06,9.00521158]
[1764122480562,2.87992166,140.08,140.06,0.04661158]
[1764122482571,0.04992166,140.08,140.06,2.57661158]
[1764122483458,0.04992166,140.08,140.06,9.00511158]
[1764122484062,2.87992166,140.08,140.06,0.04661158]
[1764122484263,8.09963506,140.07,140.06,0.04661158]
[1764122487153,8.09963506,140.07,140.0,2.53]
[1764122487360,2.83,140.05,140.0,2.53]
[1764122487665,8.09963506,140.04,140.0,2.53]
[1764122487868,2.83,140.04,140.0,2.53]
[1764122488167,2.83,140.04,140.01,2.53]
[1764122488365,0.05372805,140.03,140.01,2.58072848]
[1764122490267,0.05372805,140.03,140.02,2.53]
[1764122491565,6.4272,140.1,140.04,2.53]
[1764122491768,5.27126058,140.09,140.04,2.53]
[1764122491963,5.27126058,140.08,140.04,2.53]
[1764122492171,5.27126058,140.07,140.04,2.53]
[1764122492471,0.04560076,140.07,140.05,2.53]
[1764122493370,0.04560076,140.07,140.06,2.53]
[1764122494470,8.09614878,140.12,140.08,2.53]
[1764122494674,5.26614878,140.11,140.08,2.53]
[1764122494977,5.20595096,140.14,140.08,2.53]
[1764122495173,5.26607346,140.13,140.08,2.53]
[1764122495375,5.31553572,140.12,140.1,2.53]
[1764122495566,0.04946226,140.12,140.1,2.53]
[1764122495764,0.04946226,140.12,140.09,0.05028835]
[1764122495765,2.87946226,140.12,140.09,0.05028835]
[1764122495976,2.83,140.1,140.09,0.05028835]
[1764122496169,8.0941602,140.1,140.09,0.05028835]
[1764122497073,2.83,140.09,140.05,2.53]
[1764122497379,8.0941602,140.08,140.05,2.53]
[1764122497673,2.83,140.08,140.05,2.53]
[1764122497876,8.21153086,140.07,140.03,33.4399]
[1764122498065,2.83,140.05,140.04,0.05118478]
[1764122498379,8.21199313,140.05,140.04,0.05118478]
[1764122499278,5.38199313,140.05,140.04,0.05118478]
[1764122500480,8.21199313,140.05,140.04,0.05118478]
[1764122506189,5.38199313,140.05,140.04,2.58118478]
[1764122507287,5.38199313,140.05,140.04,0.05118478]
[1764122507489,8.34199313,140.05,140.04,0.05118478]
[1764122507893,5.38199313,140.05,140.04,2.58118478]
[1764122508189,5.38199313,140.05,140.04,0.05118478]
[1764122510394,8.34199313,140.05,140.04,0.05118478]
[1764122511682,8.34199313,140.05,139.99,8.9617]
[1764122511683,2.96,140.04,139.99,8.9617]
[1764122511884,2.96,140.02,139.99,8.9617]
[1764122512795,3.00889179,140.02,139.99,9.01115622]
[1764122513689,3.00889179,140.02,140.0,9.0115]
[1764122513893,0.04889179,140.02,140.0,9.0115]
[1764122519194,0.04889179,140.02,140.01,2.58]
[1764122519694,5.44055904,140.02,140.01,2.58]
[1764122519898,2.96,140.05,140.02,2.58]
[1764122521003,3.01340735,140.05,140.02,2.62954522]
[1764122521301,3.01340735,140.05,140.02,0.04954522]
[1764122521595,3.01340735,140.05,140.02,2.62954522]
[1764122521596,0.05340735,140.05,140.02,2.62954522]
[1764122521797,0.05340735,140.05,140.04,2.58]
[1764122521995,8.18904812,140.11,140.05,2.58]
[1764122522196,2.98,140.11,140.05,2.58]
[1764122522496,2.98,140.11,140.05,102.5869]
[1764122522691,9.64682405,140.14,140.08,2.58]
[1764122522892,3.02788305,140.12,140.1,0.04933111]
[1764122523999,0.04788305,140.12,140.1,9.05603111]
[1764122524997,3.02788305,140.12,140.1,6.47603111]
[1764122525203,3.02788305,140.12,140.1,0.04933111]
[1764122529808,0.04788305,140.12,140.1,2.62933111]
[1764122529999,3.02788305,140.12,140.1,0.04933111]
[1764122531904,5.36810009,140.11,140.1,0.04933111]
[1764122532307,8.34810009,140.11,140.1,0.04933111]
[1764122534304,8.34810009,140.11,140.03,24.48]
[1764122534305,2.98,140.1,140.03,27.06]
[1764122534505,8.34810009,140.09,140.03,27.06]
[1764122534807,8.34810009,140.08,140.04,2.63]
[1764122535007,2.98,140.08,140.04,2.63]
[1764122535397,0.049743,140.07,140.05,2.68431949]
[1764122536010,3.029743,140.07,140.05,0.05431949]
[1764122536603,3.029743,140.07,140.05,2.68431949]
[1764122538013,0.049743,140.07,140.06,2.63]
[1764122541010,5.36823678,140.12,140.09,2.58]
[1764122541206,5.36823678,140.11,140.09,2.58]
[1764122541408,5.36823678,140.1,140.09,2.58]
[1764122541611,5.36823678,140.1,140.09,9.0072]
[1764122543113,0.05016965,140.11,140.09,9.0072]
[1764122545616,3.06016965,140.11,140.09,9.0072]
[1764122545906,0.05016965,140.11,140.1,2.58]
[1764122546112,5.41614535,140.11,140.1,2.58]
[1764122547111,0.05016965,140.11,140.1,2.58]
[1764122549208,0.05016965,140.11,140.09,9.0072]
[1764122549716,0.05016965,140.11,140.1,2.58]
[1764122550310,3.06016965,140.11,140.09,9.0072]
[1764122550506,0.05016965,140.11,140.09,9.0072]
[1764122552818,0.05016965,140.11,140.1,2.58]
[1764122559515,3.06016965,140.11,140.08,0.04660308]
[1764122559722,5.36128808,140.1,140.08,2.62660308]
[1764122559920,3.06016965,140.11,140.08,2.62660308]
[1764122560121,5.36211148,140.1,140.08,2.62660308]
[1764122560322,3.06016965,140.11,140.08,9.05440308]
[1764122560510,5.36401366,140.1,140.09,2.58]
[1764122561418,5.36401366,140.1,140.08,0.04660308]
[1764122561623,3.01,140.1,140.08,0.04660308]
[1764122561824,3.06016965,140.11,140.08,2.62660308]
[1764122562015,5.36617601,140.1,140.08,2.62660308]
[1764122562216,8.37661935,140.09,140.08,0.04660308]
[1764122563819,0.05016965,140.11,140.08,0.04660308]
[1764122563820,0.05016965,140.11,140.08,2.62660308]
[1764122564417,0.05016965,140.11,140.09,6.4274]
[1764122565432,36.8401931,140.2,140.12,99.9599]
[1764122565433,3.01,140.19,140.12,99.9599]
[1764122565630,3.01,140.19,140.13,3.53294657]
[1764122565923,3.01,140.19,140.14,6.4249]
[1764122566625,3.06123897,140.18,140.15,0.04700862]
[1764122568729,0.05123897,140.18,140.15,0.04700862]
[1764122570018,0.05123897,140.18,140.15,6.47140862]
[1764122570626,0.05123897,140.18,140.16,2.25664754]
[1764122571123,0.05123897,140.18,140.16,33.14064754]
[1764122572628,0.05123897,140.18,140.16,8.68064754]
[1764122573031,3.09123897,140.18,140.16,6.424]
[1764122573331,3.09123897,140.18,140.15,0.04700862]
[1764122575927,8.32197627,140.17,140.15,0.04700862]
[1764122576131,3.04,140.17,140.15,0.04700862]
[1764122581531,8.36199222,140.16,140.15,0.04700862]
[1764122582332,3.08,140.15,140.1,2.25664754]
[1764122582538,3.08,140.13,140.09,6.4271]
[1764122583140,3.08,140.13,140.1,6.4268]
[1764122583438,3.12655177,140.13,140.1,6.47426402]
[1764122589645,3.12655177,140.13,140.11,6.4263]
[1764122589842,0.04655177,140.13,140.12,2.25664754]
[1764122590344,0.04655177,140.13,140.11,6.4263]
[1764122590733,0.04655177,140.13,140.12,2.25664754]
[1764122591240,0.04655177,140.13,140.12,26.71664754]
[1764122591944,0.04655177,140.13,140.11,6.4263]
[1764122592351,3.12655177,140.13,140.11,6.4263]
[1764122598238,0.04655177,140.13,140.12,2.25664754]
[1764122607547,3.12655177,140.13,140.1,0.04746402]
[1764122607859,8.36204717,140.12,140.1,0.04746402]
[1764122608052,3.08,140.12,140.1,0.04746402]
[1764122608558,3.08,140.12,140.1,6.47436402]
[1764122611860,8.36458908,140.11,140.1,0.04746402]
[1764122612555,3.08,140.1,140.05,2.25664754]
[1764122612755,3.08,140.08,140.05,2.25664754]
[1764122613265,3.08,140.08,140.06,6.4286]
[1764122613457,0.05239328,140.08,140.06,6.47697562]
[1764122615653,0.05239328,140.08,140.07,2.25664754]
[1764122623259,0.05239328,140.08,140.07,26.71664754]
[1764122623668,8.27579852,140.15,140.09,99.9824]
[1764122623970,8.3994354,140.14,140.11,2.25664754]
[1764122624170,5.3194354,140.13,140.11,2.25664754]
[1764122624371,5.3194354,140.12,140.11,8.68314754]
[1764122624969,0.05294457,140.13,140.11,8.68314754]
[1764122630271,3.10294457,140.13,140.11,8.68314754]
[1764122632579,3.10294457,140.13,140.11,6.4265]
[1764122634378,0.05294457,140.13,140.11,6.4265]
[1764122640183,3.10294457,140.13,140.11,6.4265]
[1764122642075,2.95,140.11,140.1,0.05307241]
[1764122642387,8.09984676,140.11,140.1,0.05307241]
[1764122643181,2.95,140.1,140.04,3.52915206]
[1764122643383,0.05294457,140.13,140.04,3.52915206]
[1764122643384,2.95,140.08,140.04,3.52915206]
[1764122644288,0.04526544,140.07,140.05,0.05117284]